{"text_format":"1","workbook":"xlsx","n_sheets":6,"sheets":["GAO73B","INSTRUCTIONS","GUIDELINES","AGENCY","DED CODE SELECTION","REPORT-PAY-PERIOD"],"not_rendered":{"charts":0,"images":4,"macros":1,"external_links":0,"defined_names":3,"comments":1,"pivot_tables":0},"unopened":[],"bounds":{"document_bytes":16777216,"sheet_cells":100000,"rows_first":2000,"rows_last":500,"rows_between":2000,"halvings":0,"cell_chars":16384,"cell_head_chars":4096},"cells_cut":0,"cells_raw":0,"read":"whole","date_system":"1900"}

{"sheet":"GAO73B","index":0,"n_rows":38,"n_cols":10,"rows_kept":38,"cut":false,"hidden":false,"merged":[[5,0,7,5],[13,0,14,0],[23,8,24,9],[12,8,12,9],[21,8,22,9],[9,5,9,7],[21,1,22,1],[21,2,22,2],[19,1,20,1],[15,2,16,2],[9,1,9,2],[10,6,10,7],[5,7,7,9],[23,2,24,2],[21,0,22,0],[15,1,16,1],[12,6,12,7],[29,0,30,0],[25,8,26,9],[27,8,28,9],[29,8,30,9],[13,8,14,9],[15,8,16,9],[17,8,18,9],[19,8,20,9],[25,0,26,0],[25,1,26,1],[25,2,26,2],[13,1,14,1],[13,2,14,2],[23,1,24,1],[23,0,24,0],[35,4,35,8],[36,4,36,8],[35,0,35,2],[36,0,36,2],[27,2,28,2],[34,3,34,5],[31,0,32,0],[31,1,32,1],[31,2,32,2],[29,1,30,1],[29,2,30,2],[27,0,28,0],[27,1,28,1],[31,8,32,9],[17,0,18,0],[17,1,18,1],[17,2,18,2],[15,0,16,0],[19,0,20,0],[19,2,20,2]]}
["State of Arizona",null,null,null,null,null,null,null,null,"Request For A One-Time Unpaid Benefit Premium Adjustment"]
["Arizona Department of Administration"]
["General Accounting Office"]
["INSTRUCTIONS "]
[]
["Use this form to request additional one time deductions for State of Arizona employees to ensure that Unpaid Benefit Premiums reflect the amount owed by the employee and employer for Benefits coverage.  The One-Time Unpaid Benefit Premium Adjustment Form is used to refund employer deductions that should be paid by the employee and add an employee charge for the amount owed.   ",null,null,null,null,null,null,"Once completed, email CENTRAL.PAYROLL@AZDOA.GOV \nby the appropriate deadline:  \n     Payday: by 12 noon compute Tuesday\n     Daily Handwrite: by 12 noon daily\n     For Biweekly Billing Statement: by 12 noon on pay week Friday."]
[]
[]
[]
["AGENCY CODE","PREPARED BY\nEIN                            NAME",null,"DATE PREPARED","PHONE # ","REVIEWED BY\nEIN                                 NAME",null,null,"DATE REVIEWED","PHONE #"]
["Select - Agency"]
[]
[null,"EIN","EMPLOYEE \nFULL NAME","DEDUCTION CODE","DEDUCTION DESCRIPTION","DEDUCTION AMOUNT","UNDER 30 HOUR REPORT PAY PERIOD",null,"COMMENT"]
[1,null,null,{"$f":"VLOOKUP(D15,'DED CODE SELECTION'!$I$2:$L$14,3,0)","v":"Select - EE"},{"$f":"VLOOKUP(D15,'DED CODE SELECTION'!$I$2:$L$14,4,0)","v":"Select Employee Deduction"},0,"Period:","Select Under 30 Hour Report Pay Period"]
[null,null,null,"Select - ER ",{"$f":"VLOOKUP(D15,'DED CODE SELECTION'!$I$2:$L$14,2,0)","v":"Select Employer Deduction"},{"$f":"F14*-1","v":0},"OTD Date:",{"$f":"VLOOKUP(H14,'REPORT-PAY-PERIOD'!$I$2:$J$56,2,0)","v":"OTD DATE"}]
[2,null,null,{"$f":"VLOOKUP(D17,'DED CODE SELECTION'!$I$2:$L$14,3,0)","v":"Select - EE"},{"$f":"VLOOKUP(D17,'DED CODE SELECTION'!$I$2:$L$14,4,0)","v":"Select Employee Deduction"},0,"Period:","Select Under 30 Hour Report Pay Period"]
[null,null,null,"Select - ER ",{"$f":"VLOOKUP(D17,'DED CODE SELECTION'!$I$2:$L$14,2,0)","v":"Select Employer Deduction"},{"$f":"F16*-1","v":0},"OTD Date:",{"$f":"VLOOKUP(H16,'REPORT-PAY-PERIOD'!$I$2:$J$56,2,0)","v":"OTD DATE"}]
[3,null,null,{"$f":"VLOOKUP(D19,'DED CODE SELECTION'!$I$2:$L$14,3,0)","v":"Select - EE"},{"$f":"VLOOKUP(D19,'DED CODE SELECTION'!$I$2:$L$14,4,0)","v":"Select Employee Deduction"},0,"Period:","Select Under 30 Hour Report Pay Period"]
[null,null,null,"Select - ER ",{"$f":"VLOOKUP(D19,'DED CODE SELECTION'!$I$2:$L$14,2,0)","v":"Select Employer Deduction"},{"$f":"F18*-1","v":0},"OTD Date:",{"$f":"VLOOKUP(H18,'REPORT-PAY-PERIOD'!$I$2:$J$56,2,0)","v":"OTD DATE"}]
[4,null,null,{"$f":"VLOOKUP(D21,'DED CODE SELECTION'!$I$2:$L$14,3,0)","v":"Select - EE"},{"$f":"VLOOKUP(D21,'DED CODE SELECTION'!$I$2:$L$14,4,0)","v":"Select Employee Deduction"},0,"Period:","Select Under 30 Hour Report Pay Period"]
[null,null,null,"Select - ER ",{"$f":"VLOOKUP(D21,'DED CODE SELECTION'!$I$2:$L$14,2,0)","v":"Select Employer Deduction"},{"$f":"F20*-1","v":0},"OTD Date:",{"$f":"VLOOKUP(H20,'REPORT-PAY-PERIOD'!$I$2:$J$56,2,0)","v":"OTD DATE"}]
[5,null,null,{"$f":"VLOOKUP(D23,'DED CODE SELECTION'!$I$2:$L$14,3,0)","v":"Select - EE"},{"$f":"VLOOKUP(D23,'DED CODE SELECTION'!$I$2:$L$14,4,0)","v":"Select Employee Deduction"},0,"Period:","Select Under 30 Hour Report Pay Period"]
[null,null,null,"Select - ER ",{"$f":"VLOOKUP(D23,'DED CODE SELECTION'!$I$2:$L$14,2,0)","v":"Select Employer Deduction"},{"$f":"F22*-1","v":0},"OTD Date:",{"$f":"VLOOKUP(H22,'REPORT-PAY-PERIOD'!$I$2:$J$56,2,0)","v":"OTD DATE"}]
[6,null,null,{"$f":"VLOOKUP(D25,'DED CODE SELECTION'!$I$2:$L$14,3,0)","v":"Select - EE"},{"$f":"VLOOKUP(D25,'DED CODE SELECTION'!$I$2:$L$14,4,0)","v":"Select Employee Deduction"},0,"Period:","Select Under 30 Hour Report Pay Period"]
[null,null,null,"Select - ER ",{"$f":"VLOOKUP(D25,'DED CODE SELECTION'!$I$2:$L$14,2,0)","v":"Select Employer Deduction"},{"$f":"F24*-1","v":0},"OTD Date:",{"$f":"VLOOKUP(H24,'REPORT-PAY-PERIOD'!$I$2:$J$56,2,0)","v":"OTD DATE"}]
[7,null,null,{"$f":"VLOOKUP(D27,'DED CODE SELECTION'!$I$2:$L$14,3,0)","v":"Select - EE"},{"$f":"VLOOKUP(D27,'DED CODE SELECTION'!$I$2:$L$14,4,0)","v":"Select Employee Deduction"},0,"Period:","Select Under 30 Hour Report Pay Period"]
[null,null,null,"Select - ER ",{"$f":"VLOOKUP(D27,'DED CODE SELECTION'!$I$2:$L$14,2,0)","v":"Select Employer Deduction"},{"$f":"F26*-1","v":0},"OTD Date:",{"$f":"VLOOKUP(H26,'REPORT-PAY-PERIOD'!$I$2:$J$56,2,0)","v":"OTD DATE"}]
[8,null,null,{"$f":"VLOOKUP(D29,'DED CODE SELECTION'!$I$2:$L$14,3,0)","v":"Select - EE"},{"$f":"VLOOKUP(D29,'DED CODE SELECTION'!$I$2:$L$14,4,0)","v":"Select Employee Deduction"},0,"Period:","Select Under 30 Hour Report Pay Period"]
[null,null,null,"Select - ER ",{"$f":"VLOOKUP(D29,'DED CODE SELECTION'!$I$2:$L$14,2,0)","v":"Select Employer Deduction"},{"$f":"F28*-1","v":0},"OTD Date:",{"$f":"VLOOKUP(H28,'REPORT-PAY-PERIOD'!$I$2:$J$56,2,0)","v":"OTD DATE"}]
[9,null,null,{"$f":"VLOOKUP(D31,'DED CODE SELECTION'!$I$2:$L$14,3,0)","v":"Select - EE"},{"$f":"VLOOKUP(D31,'DED CODE SELECTION'!$I$2:$L$14,4,0)","v":"Select Employee Deduction"},0,"Period:","Select Under 30 Hour Report Pay Period"]
[null,null,null,"Select - ER ",{"$f":"VLOOKUP(D31,'DED CODE SELECTION'!$I$2:$L$14,2,0)","v":"Select Employer Deduction"},{"$f":"F30*-1","v":0},"OTD Date:",{"$f":"VLOOKUP(H30,'REPORT-PAY-PERIOD'!$I$2:$J$56,2,0)","v":"OTD DATE"}]
[10,null,null,{"$f":"VLOOKUP(D33,'DED CODE SELECTION'!$I$2:$L$14,3,0)","v":"Select - EE"},{"$f":"VLOOKUP(D33,'DED CODE SELECTION'!$I$2:$L$14,4,0)","v":"Select Employee Deduction"},0,"Period:","Select Under 30 Hour Report Pay Period"]
[null,null,null,"Select - ER ",{"$f":"VLOOKUP(D33,'DED CODE SELECTION'!$I$2:$L$14,2,0)","v":"Select Employer Deduction"},{"$f":"F32*-1","v":0},"OTD Date:",{"$f":"VLOOKUP(H32,'REPORT-PAY-PERIOD'!$I$2:$J$56,2,0)","v":"OTD DATE"}]
[]
[null,null,null,"GAO CENTRAL PAYROLL USE"]
["ENTERED BY",null,null,"DATE","REVIEWED BY",null,null,null,null,"DATE"]
[]
["GAO - 73B (Revised 1/2023)"]

{"sheet":"INSTRUCTIONS","index":1,"n_rows":16,"n_cols":3,"rows_kept":16,"cut":false,"hidden":false,"merged":[[0,0,0,2],[1,0,1,2]]}
["Instructions for Completing the One Time Deduction Form"]
["NOTE:  All Fields Are Required.  The GAO73B should be used in circumstances where an employee owes the employer share of Benefit Premiums.  The GAO73B will have two lines for an employee for each benefit coverage period.  The first line will be a positive Deduction Amount for a post tax charge charge to the employee for employer share of the Benefit Premium.  The second will be a negative Deduction Amount for the applicable employer premium Deduction Code.  The negative indicates a refund is due.  Deduction Codes to use if applicable would be D181 and D185 for Dental and M183 and M187 for Medical."]
["FIELD","INSTRUCTIONS","IMAGE"]
["1.   Agency I.D.","Select the two-digit identification agency code from the drop down list."]
["2.  Prepared By","Enter the name and EIN of the preparer."]
["3.  Date Prepared","Enter the date the form was completed."]
["4.  Phone #","Enter the preparer's telephone number."]
["5.  Reviewed By","Enter the name and EIN of the reviewer."]
["6.  Date Reviewed","Enter the date the form was reviewed."]
["7.  Phone #","Enter the reviewer's telelphone number."]
["8.   E.I.N.","   Enter the Employee Identification Number."]
["9.   Employee Full Name","Enter the employee's full name."]
["10.   Deduction Code ","Select the deduction code from the drop down list (i.e., \"Select - ER\"). This will auto populate the following fields:\na) \"Select -EE,\"  b) \"Select Employee Deduction,\" and c) \"Select Employer Deduction.\"  Ensure this is the correct deduction you wish to use. "]
["11.   Deduction Amount ","Enter the amount (positive/charge amount). This will auto populate the employer amount (negative/refund amount).  A positive amount indicates a deduction and negative amount indicates a refund."]
["12.   Under 30 Hour Report Pay Period","Select Under 30 Hour Pay Period Report. The OTD DATE will auto populate.  Ensure this is the correct \"Under 30 Hour pay period\" you wish to use.   "]
["13.   Comment","Enter any comments that pertain to the deduction that might be helpful for validating the deduction amount."]

{"sheet":"GUIDELINES","index":2,"n_rows":0,"n_cols":0,"rows_kept":0,"cut":false,"hidden":true,"merged":[]}

{"sheet":"AGENCY","index":3,"n_rows":107,"n_cols":2,"rows_kept":107,"cut":false,"hidden":false,"merged":[]}
["AGENCY CODE","AGENCY DESCRIPTION"]
["Select - Agency"]
["AA","STATEWIDE SYSTEMS PROCESSING                 "]
["AB","BOARD OF ACCOUNTANCY                         "]
["AD","DEPT OF ADMINISTRATION                       "]
["AG","ATTORNEY GENERAL (DEPT OF LAW)               "]
["AH","DEPT OF AGRICULTURE                          "]
["AM","COMMISSION OF AFRICAN-AMERICAN AFFAIRS       "]
["AN","ACUPUNCTURE BOARD OF EXAMINERS               "]
["AU","AUDITOR GENERAL                              "]
["BA","BOARD OF ATHLETIC TRAINING                   "]
["BB","BOARD OF BARBERS                             "]
["BF","BOARD OF FINGERPRINTING                      "]
["BH","BOARD OF BEHAVIORAL HEALTH EXAMINERS         "]
["BN","BOARD OF NURSING                             "]
["CB","BOARD OF COSMETOLOGY                         "]
["CC","CORPORATION COMMISSION                       "]
["CD","EARLY CHILDHOOD DEVELOPMENT AND HEALTH BOARD "]
["CE","BOARD OF CHIROPRACTIC EXAMINERS              "]
["CH","DEPT OF CHILD SAFETY                         "]
["CL","EXPOSITION AND STATE FAIR BOARD              "]
["CO","COURT OF APPEALS                             "]
["CR","COTTON RESEARCH AND PROTECTION COUNCIL       "]
["CS","BOARD FOR CHARTER SCHOOLS                    "]
["CT","COURT OF APPEALS DIV II                      "]
["DC","DEPT OF CORRECTIONS                          "]
["DE","DEPT OF ECONOMIC SECURITY                    "]
["DF","COMMISSION FOR DEAF AND HARD OF HEARING      "]
["DJ","DEPT OF JUVENILE CORRECTIONS                 "]
["DO","BOARD OF DISPENSING OPTICIANS                "]
["DT","DEPT OF TRANSPORTATION                       "]
["DX","BOARD OF DENTAL EXAMINERS                    "]
["EB","BOARD OF EDUCATION                           "]
["EC","CITIZENS CLEAN ELECTION COMMISSION           "]
["ED","DEPT OF EDUCATION                            "]
["EO","OFFICE OF ECONOMIC OPPORTUNITY               "]
["EQ","BOARD OF EQUALIZATION                        "]
["EV","DEPT OF ENVIRONMENTAL QUALITY                "]
["FA","AZ FINANCIAL AUTHORITY                       "]
["FD","BOARD OF FUNERAL DIRECTORS AND EMBALMERS     "]
["FO","OFFICE OF THE STATE FORESTER                 "]
["GF","GAME AND FISH DEPT                           "]
["GH","GOVERNOR'S OFFICE OF HIGHWAY SAFETY          "]
["GM","DEPT OF GAMING                               "]
["GV","GOVERNOR'S OFFICE                            "]
["HC","AHCCCS                                       "]
["HD","DEPT OF HOUSING                              "]
["HE","BOARD OF HOMEOPATHIC EXAMINERS               "]
["HG","OFFICE OF ADMINISTRATIVE HEARINGS            "]
["HI","HISTORICAL SOCIETY                           "]
["HL","DEPT OF HOMELAND SECURITY                    "]
["HO","HOUSE OF REPRESENTATIVES                     "]
["HS","DEPT OF HEALTH SERVICES                      "]
["HU","COMMISSION ON THE ARTS                       "]
["IC","INDUSTRIAL COMMISSION                        "]
["ID","DEPT OF INSURANCE                            "]
["JC","CRIMINAL JUSTICE COMMISSION                  "]
["JL","JOINT LEGISATIVE BUDGET COMMITTEE            "]
["LA","LIBRARY, ARCHIVES, AND PUBLIC RECORDS        "]
["LC","LEGISLATIVE COUNCIL                          "]
["LD","LAND DEPARTMENT                              "]
["LL","DEPT OF LIQUOR LICENSES AND CONTROL          "]
["LO","LOTTERY COMMISSION                           "]
["MA","DEPT OF EMERGENCY AND MILITARY AFFAIRS       "]
["ME","MEDICAL BOARD                                "]
["MI","MINE INSPECTOR                               "]
["MT","BOARD OF MASSAGE THERAPY                     "]
["NB","NATUROPATHIC PHYSICIANS MEDICAL BOARD        "]
["NC","BOARD OF EXAM NURSING CARE & ASSTD LVNG      "]
["NS","NAVIGABLE STREAM ADJUDICATION COMMISSION     "]
["OB","BOARD OF OPTOMETRY                           "]
["OC","OMBUDSMAN CITIZENS AIDE"]
["OS","BOARD OF OSTEOPATHIC EXAMINERS               "]
["OT","BOARD OF OCCUPATIONAL THERAPY EXAMINERS      "]
["PA","POWER AUTHORITY                              "]
["PB","PERSONNEL BOARD                              "]
["PE","COMMISSION FOR POSTSECONDARY EDUCATION       "]
["PH","PRESCOTT HISTORICAL SOCIETY                  "]
["PI","PIONEERS' HOME                               "]
["PM","BOARD OF PHARMACY                            "]
["PO","BOARD OF PODIATRY EXAMINERS                  "]
["PP","BOARD OF EXECUTIVE CLEMENCY                  "]
["PR","PARKS BOARD                                  "]
["PS","DEPT OF PUBLIC SAFETY                        "]
["PT","BOARD OF PHYSICAL THERAPY                    "]
["PV","BOARD FOR PRIVATE POSTSECONDARY EDUCATION    "]
["RB","BOARD OF RESPIRATORY CARE EXAMINERS          "]
["RE","REAL ESTATE DEPARTMENT                       "]
["RG","REGISTRAR OF CONTRACTORS                     "]
["RS","PUBLIC SAFETY PERSONNEL RETIREMENT SYSTEM    "]
["RT","ARIZONA STATE RETIREMENT SYSTEM (ASRS)       "]
["RV","DEPT OF REVENUE                              "]
["SD","SCHOOLS FOR THE DEAF AND THE BLIND           "]
["SF","SCHOOL FACILITIES BOARD                      "]
["SN","SENATE                                       "]
["SP","SUPREME COURT                                "]
["ST","SECRETARY OF STATE (DEPT OF STATE)           "]
["SY","BOARD OF PSYCHOLOGIST EXAMINERS              "]
["TE","BOARD OF TECHNICAL REGISTRATION              "]
["TO","OFFICE OF TOURISM                            "]
["TR","STATE TREASURER                              "]
["TX","BOARD OF TAX APPEALS                         "]
["UO","RESIDENTIAL UTILITY CONSUMER OFFICE          "]
["VS","VETERANS' SERVICE ADVISORY COMMISSION        "]
["VT","VETERINARY MEDICAL EXAMINING BOARD           "]
["WC","DEPT OF WATER RESOURCES                      "]
["YY","RETIREE ACCUMULATED SICK LEAVE               "]

{"sheet":"DED CODE SELECTION","index":4,"n_rows":18,"n_cols":12,"rows_kept":18,"cut":false,"hidden":false,"merged":[]}
["DED_CODE","DESCRIPTION","DED CODE LINKED","DED CODE LINKED DESCRIPTION",null,null,null,null,"DED CODE LINKED","DED CODE LINKED DESCRIPTION","DED_CODE","DESCRIPTION"]
["Select - EE","Select Employee Deduction","Select - ER","Select Employer Deduction",null,null,null,null,"Select - ER ","Select Employer Deduction","Select - EE","Select Employee Deduction"]
["D181","DENTAL-DELTA-ER PORTION","D006","DELTA DENTAL - ER             ",null,null,null,null,"D006","DELTA DENTAL - ER             ","D181","DENTAL-DELTA-ER PORTION"]
["D187","DENTAL-UHC-ER PORTION         ","D012","UHC DENTAL - ER               ",null,null,null,null,"D012","UHC DENTAL - ER               ","D187","DENTAL-UHC-ER PORTION         "]
["M183","MEDICAL-BCBS-ER PORTION"]
["M187","MEDICAL-UHC-ER PORTION",null,null,null,null,null,null,"M032","BCBSAZ HDHP-ER ","M183","MEDICAL-BCBS-ER PORTION"]
[null,null,null,null,null,null,null,null,"M034","BCBSAZ TRIPLE-ER ","M183","MEDICAL-BCBS-ER PORTION"]
["D005","DELTA DENTAL - EE             ",null,null,null,null,null,null,"M036","UNITED HEALTH HDHP-ER ","M187","MEDICAL-UHC-ER PORTION"]
["D011","UHC DENTAL - EE               ",null,null,null,null,null,null,"M038","UNITED HEALTH TRIPLE-ER ","M187","MEDICAL-UHC-ER PORTION"]
[null,null,null,null,null,null,null,null,"M204","ER HSA BC CONTRIBUTION SINGLE ","M183","MEDICAL-BCBS-ER PORTION"]
["M031","BCBSAZ HDHP-EE ","M032","BCBSAZ HDHP-ER ",null,null,null,null,"M206","ER HSA BC CONTRIBUTION FAMILY ","M183","MEDICAL-BCBS-ER PORTION"]
["M033","BCBSAZ TRIPLE-EE ","M034","BCBSAZ TRIPLE-ER ",null,null,null,null,"M208","ER HSA UHC CONTRIBUTION SINGLE","M187","MEDICAL-UHC-ER PORTION"]
["M035","UNITED HEALTH HDHP-EE ","M036","UNITED HEALTH HDHP-ER ",null,null,null,null,"M210","ER HSA UHC CONTRIBUTION FAMILY","M187","MEDICAL-UHC-ER PORTION"]
["M037","UNITED HEALTH TRIPLE-EE ","M038","UNITED HEALTH TRIPLE-ER "]
["M155","EE HSA BC CONTRIBUTION SINGLE ","M204","ER HSA BC CONTRIBUTION SINGLE "]
["M157","EE HSA BC CONTRIBUTION FAMILY ","M206","ER HSA BC CONTRIBUTION FAMILY "]
["M159","EE HSA UHC CONTRIBUTION SINGLE","M208","ER HSA UHC CONTRIBUTION SINGLE"]
["M161","EE HSA UHC CONTRIBUTION FAMILY","M210","ER HSA UHC CONTRIBUTION FAMILY"]

{"sheet":"REPORT-PAY-PERIOD","index":5,"n_rows":57,"n_cols":10,"rows_kept":57,"cut":false,"hidden":false,"merged":[[0,2,0,3],[0,8,0,9]]}
[null,null,"Coverage Period ",null,null,null,null,null,"GAO-73B Entry (W, TH, F after CT)"]
["PD #","PAYDATE","PPB","PPE",null,null,"PD #","PAYDATE","Select Under 30 Hour Report Pay Period","OTD DATE"]
[24,"2021-12-02","2021-11-27","2021-12-10",null,null,24,"2021-12-02","Nov 2021 and Prior - enter in comments","N/A"]
[{"$f":"A3+1","v":25},{"$f":"B3+14","v":"2021-12-16"},"2021-12-11","2021-12-24",null,null,{"$f":"G3+1","v":25},{"$f":"H3+14","v":"2021-12-16"},{"$f":"TEXT(C3,\"m/d/y\")&\"-\"&TEXT(D3,\"m/d/y\")","v":"11/27/21-12/10/21"},"2021-12-02"]
[26,"2021-12-30","2021-12-25","2022-01-07",null,null,26,"2021-12-30","12/11/21-12/24/21",{"$f":"J4+14","v":"2021-12-16"}]
[1,"2022-01-13",{"$f":"C5+14","v":"2022-01-08"},"2022-01-21",null,null,1,"2022-01-13","12/25/21-1/7/22","2021-12-30"]
[{"$f":"A6+1","v":2},"2022-01-27",{"$f":"C6+14","v":"2022-01-22"},"2022-02-04",null,null,{"$f":"G6+1","v":2},"2022-01-27","1/8/22-1/21/22","2022-01-13"]
[{"$f":"A7+1","v":3},"2022-02-10",{"$f":"C7+14","v":"2022-02-05"},"2022-02-18",null,null,{"$f":"G7+1","v":3},"2022-02-10","1/22/22-2/4/22","2022-01-27"]
[4,"2022-02-24",{"$f":"C8+14","v":"2022-02-19"},"2022-03-04",null,null,4,"2022-02-24","2/5/22-2/18/22","2022-02-10"]
[5,"2022-03-10",{"$f":"C9+14","v":"2022-03-05"},"2022-03-18",null,null,5,"2022-03-10","2/19/22-3/4/22","2022-02-24"]
[6,"2022-03-24",{"$f":"C10+14","v":"2022-03-19"},"2022-04-01",null,null,6,"2022-03-24","3/5/22-3/18/22","2022-03-10"]
[7,"2022-04-07",{"$f":"C11+14","v":"2022-04-02"},"2022-04-15",null,null,7,"2022-04-07","3/19/22-4/1/22","2022-03-24"]
[8,"2022-04-21",{"$f":"C12+14","v":"2022-04-16"},"2022-04-29",null,null,8,"2022-04-21","4/2/22-4/15/22","2022-04-07"]
[9,{"$f":"B13+14","v":"2022-05-05"},"2022-04-30","2022-05-13",null,null,9,"2022-05-05","4/16/22-4/29/22","2022-04-21"]
[10,"2022-05-19","2022-05-14","2022-05-27",null,null,10,"2022-05-19","4/30/22-5/13/22","2022-05-05"]
[11,"2022-06-02","2022-05-28","2022-06-10",null,null,11,"2022-06-02","5/14/22-5/27/22","2022-05-19"]
[12,"2022-06-16","2022-06-11","2022-06-24",null,null,12,"2022-06-16","5/28/22-6/10/22","2022-06-02"]
[13,"2022-06-30","2022-06-25","2022-07-08",null,null,13,"2022-06-30","6/11/22-6/24/22","2022-06-16"]
[14,"2022-07-14","2022-07-09","2022-07-22",null,null,14,"2022-07-14","6/25/22-7/8/22","2022-06-30"]
[15,"2022-07-28","2022-07-23","2022-08-05",null,null,15,"2022-07-28","7/9/22-7/22/22","2022-07-14"]
[16,"2022-08-11","2022-08-06","2022-08-19",null,null,16,"2022-08-11","7/23/22-8/5/22","2022-07-28"]
[17,"2022-08-25","2022-08-20","2022-09-02",null,null,17,"2022-08-25","8/6/22-8/19/22","2022-08-11"]
[18,"2022-09-08","2022-09-03","2022-09-16",null,null,18,"2022-09-08","8/20/22-9/2/22","2022-08-25"]
[19,"2022-09-22","2022-09-17","2022-09-30",null,null,19,"2022-09-22","9/3/22-9/16/22","2022-09-08"]
[20,"2022-10-06","2022-10-01","2022-10-14",null,null,20,"2022-10-06","9/17/22-9/30/22","2022-09-22"]
[21,"2022-10-20","2022-10-15","2022-10-28",null,null,21,"2022-10-20","10/1/22-10/14/22","2022-10-06"]
[22,"2022-11-03","2022-10-29","2022-11-11",null,null,22,"2022-11-03","10/15/22-10/28/22","2022-10-20"]
[23,"2022-11-17","2022-11-12","2022-11-25",null,null,23,"2022-11-17","10/29/22-11/11/22","2022-11-03"]
[24,"2022-12-01","2022-11-26","2022-12-09",null,null,24,"2022-12-01","11/12/22-11/25/22","2022-11-17"]
[25,"2022-12-15","2022-12-10","2022-12-23",null,null,25,"2022-12-15","11/26/22-12/9/22","2022-12-01"]
[26,"2022-12-29","2022-12-24","2023-01-06",null,null,26,"2022-12-29","12/10/22-12/23/22","2022-12-15"]
[1,"2023-01-12","2023-01-07","2023-01-20",null,null,1,"2023-01-12","12/24/22-1/6/23","2022-12-29"]
[{"$f":"A32+1","v":2},"2023-01-26","2023-01-21","2023-02-03",null,null,{"$f":"G32+1","v":2},"2023-01-26","1/7/23-1/20/23","2023-01-12"]
[{"$f":"A33+1","v":3},"2023-02-09","2023-02-04","2023-02-17",null,null,{"$f":"G33+1","v":3},"2023-02-09","1/21/23-2/3/23","2023-01-26"]
[4,"2023-02-23","2023-02-18","2023-03-03",null,null,4,"2023-02-23","2/4/23-2/17/23","2023-02-09"]
[5,"2023-03-09","2023-03-04","2023-03-17",null,null,5,"2023-03-09","2/18/23-3/3/23","2023-02-23"]
[6,"2023-03-23","2023-03-18","2023-03-31",null,null,6,"2023-03-23","3/4/23-3/17/23","2023-03-09"]
[7,"2023-04-06","2023-04-01","2023-04-14",null,null,7,"2023-04-06","3/18/23-3/31/23","2023-03-23"]
[8,"2023-04-20","2023-04-15","2023-04-28",null,null,8,"2023-04-20","4/1/23-4/14/23","2023-04-06"]
[9,"2023-05-04","2023-04-29","2023-05-12",null,null,9,"2023-05-04","4/15/23-4/28/23","2023-04-20"]
[10,"2023-05-18","2023-05-13","2023-05-26",null,null,10,"2023-05-18","4/29/23-5/12/23","2023-05-04"]
[11,"2023-06-01","2023-05-27","2023-06-09",null,null,11,"2023-06-01","5/13/23-5/26/23","2023-05-18"]
[12,"2023-06-15","2023-06-10","2023-06-23",null,null,12,"2023-06-15","5/27/23-6/9/23","2023-06-01"]
[13,"2023-06-29","2023-06-24","2023-07-07",null,null,13,"2023-06-29","6/10/23-6/23/23","2023-06-15"]
[14,"2023-07-13","2023-07-08","2023-07-21",null,null,14,"2023-07-13",{"$f":"TEXT(C44,\"m/d/y\")&\"-\"&TEXT(D44,\"m/d/y\")","v":"6/24/23-7/7/23"},"2023-06-29"]
[15,"2023-07-27","2023-07-22","2023-08-04",null,null,15,{"$f":"H45+14","v":"2023-07-27"},"7/8/23-7/21/23",{"$f":"J45+14","v":"2023-07-13"}]
[16,"2023-08-10","2023-08-05","2023-08-18",null,null,16,"2023-08-10","7/22/23-8/4/23","2023-07-27"]
[17,"2023-08-24","2023-08-19","2023-09-01",null,null,17,"2023-08-24","8/5/23-8/18/23","2023-08-10"]
[18,"2023-09-07","2023-09-02","2023-09-15",null,null,18,"2023-09-07","8/19/23-9/1/23","2023-08-24"]
[19,"2023-09-21","2023-09-16","2023-09-29",null,null,19,"2023-09-21","9/2/23-9/15/23","2023-09-07"]
[20,"2023-10-05","2023-09-30","2023-10-13",null,null,20,"2023-10-05","9/16/23-9/29/23","2023-09-21"]
[21,"2023-10-19","2023-10-14","2023-10-27",null,null,21,"2023-10-19","9/30/23-10/13/23","2023-10-05"]
[22,"2023-11-02","2023-10-28","2023-11-10",null,null,22,"2023-11-02","10/14/23-10/27/23","2023-10-19"]
[23,"2023-11-16","2023-11-11","2023-11-24",null,null,23,"2023-11-16","10/28/23-11/10/23","2023-11-02"]
[24,"2023-11-30","2023-11-25","2023-12-08",null,null,24,"2023-11-30","11/11/23-11/24/23","2023-11-16"]
[25,"2023-12-14","2023-12-09","2023-12-22",null,null,25,"2023-12-14","11/25/23-12/8/23","2023-11-30"]
[26,"2023-12-28","2023-12-23","2024-01-05",null,null,26,"2023-12-28","12/9/23-12/22/23","2023-12-14"]